lending/lending_fUSD_20251218
["ID","MTS","AMOUNT","RATE_DAILY","PERIOD"]
[399036590,1766081433820,-281.99647795,0.000367,15]
[399036591,1766081433829,-500.0,0.000367,15]
[399036592,1766081433839,-443.55203571,0.000367,15]
[399036593,1766081433849,-4162.0,0.00036701,5]
[399036594,1766081433858,-288656.54437902,0.00036701,2]
[399036595,1766081433871,-24345.95614753,0.00036701,2]
[399036596,1766081433883,-59440.3055799,0.00036701,2]
[399036597,1766081433894,-87370.50771782,0.00036701,2]
[399036598,1766081433917,-2690.95070822,0.00036701,2]
[399036599,1766081433928,-1676.10108846,0.00036701,2]
[399036600,1766081433939,-1709.26755437,0.00036701,2]
[399036601,1766081434022,-262.92814911,0.00036701,2]
[399036602,1766081434034,-4680.79317431,0.00036701,2]
[399036603,1766081434045,-25290.0,0.00036701,2]
[399036604,1766081434056,-669.01695779,0.00036701,2]
[399036605,1766081434070,-1463.00132797,0.00036701,2]
[399036607,1766081437675,-277.111833,0.000355,30]
[399036608,1766081437685,-22.888167,0.00036701,2]
[399036609,1766081437696,-1680.96,0.00036701,2]
[399036610,1766081437730,-5275.90333579,0.00036701,2]
[399036611,1766081437786,-369.32,0.00036701,2]
[399036612,1766081437797,-3039.84169753,0.00036701,2]
[399036613,1766081437808,-2418.07525,0.00036701,2]
[399036801,1766081439752,-11085.50968089,0.00036701,2]
[399036825,1766081439966,-2663.2606002,0.00036701,2]
[399036944,1766081446326,-418.36070652,0.00036701,2]
[399037184,1766081650618,195.0,0.00021944,120]
[399037185,1766081650729,195.0,0.0001995,120]
[399037193,1766081868235,250.0,0.00017,2]
[399037194,1766081875909,2000.0,0.00019848,2]
[399037195,1766081876185,2000.0,0.00019848,2]
[399037196,1766081876475,2000.0,0.00019848,2]
[399037197,1766081876754,2000.0,0.00019848,2]
[399037198,1766081877027,1750.01,0.00019848,2]
[399037199,1766081877051,249.99,0.00019848,2]
[399037200,1766081877311,2000.0,0.00019848,2]
[399037201,1766081877602,2000.0,0.00019848,2]
[399037202,1766081877891,2000.0,0.00019848,2]
[399037203,1766081878164,2000.0,0.00019848,2]
[399037204,1766081878462,1750.02,0.00019848,2]
[399037205,1766081878485,249.98,0.00019848,2]
[399037206,1766081878748,2000.0,0.00019848,2]
[399037207,1766081879051,2000.0,0.00019848,2]
[399037208,1766081879349,2000.0,0.00019848,2]
[399037209,1766082143633,241.39,0.00013699,2]
[399037212,1766082307671,10000.01,0.00017,2]
[399037213,1766082307920,10000.01,0.00017,2]
[399037214,1766082307946,10000.01,0.00017,2]
[399037215,1766082312772,-6035.3846,0.00017,2]
[399037216,1766082312887,-10000.01,0.00017,2]
[399037217,1766082313001,-10000.01,0.00017,2]
[399037218,1766082313114,-10000.01,0.00017,2]
[399037219,1766082313256,-10000.01,0.00017,2]
[399037220,1766082313387,-10000.01,0.00017,2]
[399037221,1766082313504,-10000.01,0.00017,2]
[399037222,1766082313627,-10000.01,0.00017,2]
[399037223,1766082313747,-10000.01,0.00017,2]
[399037224,1766082317959,-10000.01,0.00017,2]
[399037225,1766082318120,-10000.01,0.00017,2]
[399037226,1766082318232,-10000.01,0.00017,2]
[399037227,1766082318354,-10000.01,0.00017,2]
[399037228,1766082318590,-10000.01,0.00017,2]
[399037229,1766082318717,-10000.01,0.00017,2]
[399037230,1766082318818,-10000.01,0.00017,2]
[399037231,1766082318941,-10000.01,0.00017,2]
[399037232,1766082319079,-10000.01,0.00017,2]
[399037233,1766082319181,7341.46115044,9e-05,2]
[399037234,1766082319217,-10000.01,0.00017,2]
[399037235,1766082319338,-10000.01,0.00017,2]
[399037236,1766082319453,-10000.01,0.00017,2]
[399037237,1766082319586,-10000.01,0.00017,2]
[399037238,1766082319711,-10000.01,0.00017,2]
[399037239,1766082319826,-10000.01,0.00017,2]
[399037240,1766082324868,10000.01,0.00016,2]
[399037241,1766082327182,-10000.01,0.00017,2]
[399037242,1766082327289,-10000.01,0.00017,2]
[399037243,1766082327427,-10000.01,0.00017,2]
[399037244,1766082327555,-10000.01,0.00017,2]
[399037245,1766082327675,-10000.01,0.00017,2]
[399037246,1766082327838,-10000.01,0.00017,2]
[399037247,1766082327958,-10000.01,0.00017,2]
[399037248,1766082328081,-10000.01,0.00017,2]
[399037249,1766082328195,-10000.01,0.00017,2]
[399037250,1766082328302,-10000.01,0.00017,2]
[399037251,1766082361487,4450.97516543,8e-05,2]
[399037252,1766082396725,-4881.489108,0.00016915,2]
[399037253,1766082396759,-237.031784,0.00016936,2]
[399037254,1766082396928,-62.968216,0.00016936,2]
[399037255,1766082396956,-195.0,0.00016957,2]
[399037256,1766082396983,-300.0,0.00016957,2]
[399037257,1766082397010,-1000.0,0.00016999,2]
[399037258,1766082397038,-300.0,0.00016999,2]
[399037259,1766082397128,-6284.073568,0.00017,2]
[399037260,1766082397141,-10000.01,0.00017,2]
[399037261,1766082397193,-10000.01,0.00017,2]
[399037262,1766082397323,-10000.01,0.00017,2]
[399037263,1766082397427,-10000.01,0.00017,2]
[399037264,1766082397546,-10000.01,0.00017,2]
[399037265,1766082397843,-10000.01,0.00017,2]
[399037266,1766082397958,-10000.01,0.00017,2]
[399037267,1766082398106,-10000.01,0.00017,2]
[399037268,1766082398229,-10000.01,0.00017,2]
[399037269,1766082414289,5000.00825391,0.000162,5]
[399037270,1766082417936,-507.41196162,0.000169,2]
[399037271,1766082417982,-8985.18607676,0.00017,2]
[399037272,1766082418097,-10000.01,0.00017,2]
[399037273,1766082418206,-10000.01,0.00017,2]
[399037274,1766082418319,-10000.01,0.00017,2]
[399037275,1766082418481,-10000.01,0.00017,2]
[399037276,1766082418607,-10000.01,0.00017,2]
[399037277,1766082418729,-10000.01,0.00017,2]
[399037278,1766082418874,-10000.01,0.00017,2]
[399037279,1766082426815,-1024.897156,0.00016915,2]
[399037280,1766082426845,-300.0,0.00016999,2]
[399037281,1766082426904,-7350.215688,0.00017,2]
[399037282,1766082427104,-10000.01,0.00017,2]
[399037283,1766082427155,-10000.01,0.00017,2]
[399037284,1766082427311,-250.0,0.00016957,2]
[399037285,1766082427353,-9500.01,0.00017,2]
[399037286,1766082427427,-10000.01,0.00017,2]
[399037287,1766082427581,-10000.01,0.00017,2]
[399037288,1766082427699,-10000.01,0.00017,2]
[399037289,1766082427806,-10000.01,0.00017,2]
[399037290,1766082429790,5505.087,7.945e-05,2]
[399037291,1766082430088,-10000.01,0.00017,2]
[399037292,1766082430101,-10000.01,0.00017,2]
[399037293,1766082430127,-10000.01,0.00017,2]
[399037294,1766082436028,-421.90435706,0.00016999,2]
[399037295,1766082436058,-328.21633495,0.00016999,2]
[399037296,1766082436114,-8499.76861598,0.00017,2]
[399037297,1766082436188,-10000.01,0.00017,2]
[399037298,1766082436306,-10000.01,0.00017,2]
[399037299,1766082438978,-537.86593135,0.00016999,2]
[399037300,1766082439011,-500.0,0.00016999,2]
[399037301,1766082439048,-819.95856322,0.00016999,2]
[399037302,1766082439077,-500.0,0.00016999,2]
[399037303,1766082439109,-819.95856322,0.00016999,2]
[399037304,1766082439138,-500.0,0.00016999,2]
[399037305,1766082439171,-819.95856322,0.00016999,2]
[399037306,1766082439201,-500.0,0.00016999,2]
[399037307,1766082439325,-1000.0,0.00016999,2]
[399037308,1766082439495,-4.52675798,0.00016999,2]
[399037309,1766082439509,-262.75201869,0.00016999,2]
[399037310,1766082439519,-819.95856322,0.00016999,2]
[399037311,1766082439530,-819.95856322,0.00016999,2]
[399037312,1766082439540,-819.95856322,0.00016999,2]
[399037313,1766082439549,-5277.38229165,0.00017,2]
[399037314,1766082441140,-10000.01,0.00017,2]
[399037315,1766082441161,-10000.01,0.00017,2]
[399037316,1766082441438,-819.95856322,0.00016999,2]
[399037317,1766082441469,-819.95856322,0.00016999,2]
[399037318,1766082441505,-819.95856322,0.00016999,2]
[399037319,1766082441538,-819.95856322,0.00016999,2]
[399037320,1766082441571,-819.95856322,0.00016999,2]
[399037321,1766082441602,-819.95856322,0.00016999,2]
[399037322,1766082441670,-819.95856322,0.00016999,2]
[399037323,1766082441702,-819.95856322,0.00016999,2]
[399037324,1766082441735,-819.95856322,0.00016999,2]
[399037325,1766082441766,-819.95856322,0.00016999,2]
[399037326,1766082441799,-819.95856322,0.00016999,2]
[399037327,1766082441830,-819.95856322,0.00016999,2]
[399037328,1766082441906,-819.95856322,0.00016999,2]
[399037329,1766082441938,-819.95856322,0.00016999,2]
[399037330,1766082441969,-819.95856322,0.00016999,2]
[399037331,1766082442000,-819.95856322,0.00016999,2]
[399037332,1766082442030,-819.95856322,0.00016999,2]
[399037333,1766082442061,-819.95856322,0.00016999,2]
[399037334,1766082442112,-819.95856322,0.00016999,2]
[399037335,1766082442144,-819.95856322,0.00016999,2]
[399037336,1766082442175,-819.95856322,0.00016999,2]
[399037337,1766082442206,-819.95856322,0.00016999,2]
[399037338,1766082442237,-819.95856322,0.00016999,2]
[399037339,1766082442269,-819.95856322,0.00016999,2]
[399037340,1766082442330,-819.95856322,0.00016999,2]
[399037341,1766082442360,-819.95856322,0.00016999,2]
[399037342,1766082442390,-819.95856322,0.00016999,2]
[399037343,1766082442420,-819.95856322,0.00016999,2]
[399037344,1766082442608,-819.95856322,0.00016999,2]
[399037345,1766082442640,-819.95856322,0.00016999,2]
[399037346,1766082442672,-819.95856322,0.00016999,2]
[399037347,1766082443184,-642.02896544,0.00016999,2]
[399037348,1766082443205,-177.92959778,0.00016999,2]
[399037349,1766082443215,-642.02896544,0.00017,2]
[399037350,1766082443230,-819.95856322,0.00017,2]
[399037351,1766082443250,-819.95856322,0.00017,2]
[399037352,1766082443264,-819.95856322,0.00017,2]
[399037353,1766082443284,-500.0,0.00016999,2]
[399037354,1766082443294,-319.95856322,0.00017,2]
[399037355,1766082443315,-160.50724136,0.00017,2]
[399037356,1766082443336,-500.0,0.00016999,2]
[399037357,1766082443345,-319.95856322,0.00017,2]
[399037358,1766082443359,-819.95856322,0.00017,2]
[399037359,1766082443378,-819.95856322,0.00017,2]
[399037360,1766082443397,-819.95856322,0.00017,2]
[399037361,1766082443411,-3440.34149424,0.00017,2]
[399037362,1766082443435,-819.95856322,0.00017,2]
[399037363,1766082443449,-819.95856322,0.00017,2]
[399037364,1766082443468,-819.95856322,0.00017,2]
[399037365,1766082443487,-5080.25862068,0.00017,2]
[399037366,1766082447904,-602.0254056,0.000169,2]
[399037367,1766082447943,-8795.9591888,0.00017,2]
[399037368,1766082448020,-10000.01,0.00017,2]
[399037369,1766082448141,-10000.01,0.00017,2]
[399037370,1766082448256,-10000.01,0.00017,2]
[399037371,1766082448359,-10000.01,0.00017,2]
[399037372,1766082448468,-10000.01,0.00017,2]
[399037373,1766082458152,-10000.01,0.00017,2]
[399037374,1766082458368,-10000.01,0.00017,2]
[399037375,1766082458475,-10000.01,0.00017,2]
[399037376,1766082458591,-10000.01,0.00017,2]
[399037377,1766082458696,-10000.01,0.00017,2]
[399037378,1766082460995,-10000.01,0.00017,2]
[399037379,1766082461144,-10000.01,0.00017,2]
[399037380,1766082461321,-10000.01,0.00017,2]
[399037381,1766082461437,-10000.01,0.00017,2]
[399037382,1766082461572,-10000.01,0.00017,2]
[399037385,1766082464953,-500.0,0.00016999,2]
[399037386,1766082464987,-500.0,0.00016999,2]
[399037387,1766082465019,-267.27877667,0.00016999,2]
[399037388,1766082465312,-889.11169506,0.00016999,2]
[399037389,1766082465321,-500.0,0.00016999,2]
[399037390,1766082465330,-889.11169506,0.00016999,2]
[399037391,1766082465340,-889.11169506,0.00016999,2]
[399037392,1766082465349,-889.11169506,0.00016999,2]
[399037393,1766082465359,-889.11169506,0.00016999,2]
[399037394,1766082465368,-199.67682748,0.00016999,2]
[399037395,1766082465378,-889.11169506,0.00016999,2]
[399037396,1766082465387,-889.11169506,0.00016999,2]
[399037397,1766082465397,-541.99375376,0.00016999,2]
[399037398,1766082465422,-347.1179413,0.00016999,2]
[399037399,1766082465431,-889.11169506,0.00016999,2]
[399037400,1766082465440,-889.11169506,0.00016999,2]
[399037401,1766082465450,-500.0,0.00016999,2]
[399037402,1766082465460,-889.11169506,0.00016999,2]
[399037403,1766082465469,-889.11169506,0.00016999,2]
[399037404,1766082465480,-889.11169506,0.00016999,2]
[399037405,1766082465495,-889.11169506,0.00016999,2]
[399037406,1766082465507,-889.11169506,0.00016999,2]
[399037407,1766082465516,-2929.11019328,0.00017,2]
[399037408,1766082465539,-889.11169506,0.00016999,2]
[399037409,1766082465548,-9110.89830494,0.00017,2]
[399037410,1766082465563,-10000.01,0.00017,2]
[399037411,1766082476992,-889.11169506,0.00016999,2]
[399037412,1766082477023,-889.11169506,0.00016999,2]
[399037413,1766082477053,-889.11169506,0.00016999,2]
[399037414,1766082477085,-889.11169506,0.00016999,2]
[399037415,1766082477114,-889.11169506,0.00016999,2]
[399037416,1766082477144,-219.78135434,0.00016999,2]
[399037417,1766082477189,-669.33034072,0.00016999,2]
[399037418,1766082477221,-889.11169506,0.00016999,2]
[399037419,1766082477251,-889.11169506,0.00016999,2]
[399037420,1766082477284,-889.11169506,0.00016999,2]
[399037421,1766082477317,-889.11169506,0.00016999,2]
[399037422,1766082477350,-659.34406302,0.00016999,2]
[399037423,1766082477538,-9.9862777,0.00016999,2]
[399037424,1766082477560,-219.78135434,0.00016999,2]
[399037425,1766082477570,-669.33034072,0.00016999,2]
[399037426,1766082496329,-300.0,0.00016998,2]
[399037427,1766082496359,-1200.0,0.00016998,2]
[399037428,1766082496390,-195.0,0.00016999,2]
[399037429,1766082496424,-219.78135434,0.00016999,2]
[399037430,1766082496457,-889.11169506,0.00016999,2]
[399037431,1766082496490,-889.11169506,0.00016999,2]
[399037432,1766082496527,-889.11169506,0.00016999,2]
[399037433,1766082496664,-1988.119832,0.00016913,2]
[399037434,1766082496697,-889.11169506,0.00016999,2]
[399037435,1766082496729,-889.11169506,0.00016999,2]
[399037436,1766082496762,-889.11169506,0.00016999,2]
[399037437,1766082496856,-889.11169506,0.00016999,2]
[399037438,1766082496888,-889.11169506,0.00016999,2]
[399037439,1766082496920,-889.11169506,0.00016999,2]
[399037440,1766082496951,-889.11169506,0.00016999,2]
[399037441,1766082496983,-889.11169506,0.00016999,2]
[399037442,1766082497015,-219.78135434,0.00016999,2]
[399037443,1766082497129,-669.33034072,0.00016999,2]
[399037444,1766082497161,-889.11169506,0.00016999,2]
[399037445,1766082497192,-889.11169506,0.00016999,2]
[399037446,1766082497225,-889.11169506,0.00016999,2]
[399037447,1766082497256,-889.11169506,0.00016999,2]
[399037448,1766082497289,-659.34406302,0.00016999,2]
[399037450,1766082497974,-229.76763204,0.00016999,2]
[399037451,1766082498006,-889.11169506,0.00016999,2]
[399037452,1766082498040,-889.11169506,0.00016999,2]
[399037453,1766082498072,-889.11169506,0.00016999,2]
[399037454,1766082498103,-889.11169506,0.00016999,2]
[399037455,1766082498135,-889.11169506,0.00016999,2]
[399037456,1766082498495,-645.75186924,0.00016999,2]
[399037457,1766082498511,-243.35982582,0.00016999,2]
[399037458,1766082498521,-645.75186924,0.00016999,2]
[399037459,1766082498537,-243.35982582,0.00016999,2]
[399037460,1766082498547,-645.75186924,0.00016999,2]
[399037461,1766082498565,-243.35982582,0.00016999,2]
[399037462,1766082498575,-405.9979595,0.00016999,2]
[399037463,1766082502394,-10000.01,0.00017,2]
[399037464,1766082502760,-10000.01,0.00017,2]
[399037465,1766082502881,-10000.01,0.00017,2]
[399037466,1766082502988,-10000.01,0.00017,2]
[399037467,1766082503099,-10000.01,0.00017,2]
[399037468,1766082503205,-10000.01,0.00017,2]
[399037469,1766082503323,-10000.01,0.00017,2]
[399037472,1766082508585,-1100.95574637,0.00016999,2]
[399037473,1766082508615,-383.3499577,0.00016999,2]
[399037474,1766082508663,-7031.39859186,0.00017,2]
[399037475,1766082508719,-10000.01,0.00017,2]
[399037476,1766082508830,-10000.01,0.00017,2]
[399037479,1766082512247,-10000.01,0.00017,2]
[399037480,1766082512266,-10000.01,0.00017,2]
[399037481,1766082512280,-10000.01,0.00017,2]
[399037482,1766082512307,-10000.01,0.00017,2]
[399037483,1766082512321,-10000.01,0.00017,2]
[399037484,1766082512335,-10000.01,0.00017,2]
[399037485,1766082512357,-10000.01,0.00017,2]
[399037504,1766082568135,-5188.13092661,0.000169,2]
[399037558,1766082631766,-591.23,0.0001649,2]
[399037560,1766082631775,-300.0,0.00016499,2]
[399037562,1766082631785,-1105.626654,0.00016499,2]
[399037563,1766082631796,-94.373346,0.00016499,2]
[399037564,1766082631806,-300.0,0.00016499,2]
[399037565,1766082631815,-172454.4487652,0.000165,2]
[399037566,1766082631826,-7770.88158618,0.000165,2]
[399037567,1766082631838,-6323.27171694,0.000165,2]
[399037568,1766082631849,-8522.02809177,0.000165,2]
[399037569,1766082631865,-3372.79841062,0.000165,2]
[399037570,1766082631876,-7762.89803275,0.000165,2]
[399037571,1766082631888,-10757.83684707,0.000165,2]
[399037572,1766082631900,-805.848,0.000165,2]
[399037573,1766082631933,-2083.5064752,0.000165,2]
[399037574,1766082631945,-638.67352101,0.000165,2]
[399037599,1766082637809,-1049.16699306,0.000165,2]
[399037600,1766082637821,-1888.38,0.000165,2]
[399037601,1766082637832,-8612.47309849,0.000165,2]
[399037602,1766082637844,-1611.51836,0.000165,2]
[399037603,1766082637855,-1473.16,0.000165,2]
[399037604,1766082637922,-2947.80744003,0.000165,2]
[399037605,1766082637934,-233560.51266168,0.000165,2]
[399037606,1766082637943,-289.0,0.000165,2]
[399037607,1766082637953,-342.59695128,0.000168,2]
[399037608,1766082637962,-2249.00819247,0.000169,2]
[399037609,1766082637972,-4474.93459011,0.000169,2]
[399037610,1766082637982,-591.23,0.0001699,2]
[399037611,1766082637991,-8859.3444454,0.00016999,2]
[399037612,1766082638000,-500.0,0.00016999,2]
[399037613,1766082638010,-309.06463728,0.00016999,2]
[399037614,1766082638021,-910.10062875,0.00016999,2]
[399037615,1766082638031,-910.10062875,0.00016999,2]
[399037617,1766082638041,-910.10062875,0.00016999,2]
[399037619,1766082638052,-910.10062875,0.00016999,2]
[399037620,1766082638062,-910.10062875,0.00016999,2]
[399037621,1766082638072,-910.10062875,0.00016999,2]
[399037622,1766082638082,-910.10062875,0.00016999,2]
[399037623,1766082638093,-910.10062875,0.00016999,2]
[399037625,1766082638102,-910.10062875,0.00016999,2]
[399037627,1766082638111,-910.10062875,0.00016999,2]
[399037629,1766082638121,-910.10062875,0.00016999,2]
[399037631,1766082638130,-910.10062875,0.00016999,2]
[399037633,1766082638140,-910.10062875,0.00016999,2]
[399037635,1766082638152,-910.10062875,0.00016999,2]
[399037637,1766082638162,-910.10062875,0.00016999,2]
[399037639,1766082638172,-910.10062875,0.00016999,2]
[399037640,1766082638182,-910.10062875,0.00016999,2]
[399037642,1766082638192,-910.10062875,0.00016999,2]
[399037643,1766082638202,-910.10062875,0.00016999,2]
[399037645,1766082638211,-910.10062875,0.00016999,2]
[399037646,1766082638221,-910.10062875,0.00016999,2]
[399037648,1766082638231,-910.10062875,0.00016999,2]
[399037651,1766082638241,-910.10062875,0.00016999,2]
[399037653,1766082638251,-910.10062875,0.00016999,2]
[399037654,1766082638260,-910.10062875,0.00016999,2]
[399037656,1766082638269,-910.10062875,0.00016999,2]
[399037658,1766082638279,-910.10062875,0.00016999,2]
[399037660,1766082638289,-910.10062875,0.00016999,2]
[399037662,1766082638298,-910.10062875,0.00016999,2]
[399037664,1766082638308,-910.10062875,0.00016999,2]
[399037667,1766082638317,-910.10062875,0.00016999,2]
[399037669,1766082638327,-910.10062875,0.00016999,2]
[399037670,1766082638336,-910.10062875,0.00016999,2]
[399037672,1766082638346,-910.10062875,0.00016999,2]
[399037674,1766082638355,-910.10062875,0.00016999,2]
[399037676,1766082638364,-910.10062875,0.00016999,2]
[399037677,1766082638374,-910.10062875,0.00016999,2]
[399037678,1766082638384,-910.10062875,0.00016999,2]
[399037679,1766082638395,-910.10062875,0.00016999,2]
[399037680,1766082638404,-910.10062875,0.00016999,2]
[399037681,1766082638414,-910.10062875,0.00016999,2]
[399037682,1766082638425,-910.10062875,0.00016999,2]
[399037683,1766082638436,-910.10062875,0.00016999,2]
[399037684,1766082638447,-910.10062875,0.00016999,2]
[399037685,1766082638458,-910.10062875,0.00016999,2]
[399037686,1766082638470,-910.10062875,0.00016999,2]
[399037687,1766082638480,-910.10062875,0.00016999,2]
[399037688,1766082638490,-910.10062875,0.00016999,2]
[399037689,1766082638504,-910.10062875,0.00016999,2]
[399037690,1766082638514,-910.10062875,0.00016999,2]
[399037691,1766082638526,-910.10062875,0.00016999,2]
[399037692,1766082638539,-910.10062875,0.00016999,2]
[399037693,1766082638549,-910.10062875,0.00016999,2]
[399037694,1766082638559,-539.50541031,0.00016999,2]
[399037695,1766082638571,-887.34811304,0.00016999,2]
[399037696,1766082638581,-887.34811304,0.00016999,2]
[399037697,1766082638591,-887.34811304,0.00016999,2]
[399037698,1766082638604,-887.34811304,0.00016999,2]
[399037699,1766082638613,-887.34811304,0.00016999,2]
[399037700,1766082638623,-887.34811304,0.00016999,2]
[399037701,1766082638632,-887.34811304,0.00016999,2]
[399037702,1766082638642,-887.34811304,0.00016999,2]
[399037703,1766082638656,-887.34811304,0.00016999,2]
[399037704,1766082638666,-887.34811304,0.00016999,2]
[399037705,1766082638676,-887.34811304,0.00016999,2]
[399037706,1766082638686,-887.34811304,0.00016999,2]
[399037707,1766082638697,-887.34811304,0.00016999,2]
[399037708,1766082638711,-887.34811304,0.00016999,2]
[399037709,1766082638721,-887.34811304,0.00016999,2]
[399037710,1766082638732,-887.34811304,0.00016999,2]
[399037711,1766082638742,-887.34811304,0.00016999,2]
[399037712,1766082638752,-887.34811304,0.00016999,2]
[399037713,1766082638763,-887.34811304,0.00016999,2]
[399037714,1766082638774,-887.34811304,0.00016999,2]
[399037715,1766082638784,-887.34811304,0.00016999,2]
[399037716,1766082638795,-887.34811304,0.00016999,2]
[399037717,1766082638805,-887.34811304,0.00016999,2]
[399037718,1766082638815,-887.34811304,0.00016999,2]
[399037719,1766082638825,-887.34811304,0.00016999,2]
[399037720,1766082638835,-887.34811304,0.00016999,2]
[399037721,1766082638845,-887.34811304,0.00016999,2]
[399037722,1766082638855,-887.34811304,0.00016999,2]
[399037723,1766082638865,-500.0,0.00016999,2]
[399037724,1766082638876,-887.34811304,0.00016999,2]
[399037725,1766082638886,-230.85967103,0.00016999,2]
[399037726,1766082638900,-887.34811304,0.00016999,2]
[399037727,1766082638909,-887.34811304,0.00016999,2]
[399037728,1766082638919,-500.0,0.00016999,2]
[399037729,1766082638929,-887.34811304,0.00016999,2]
[399037730,1766082638939,-500.0,0.00016999,2]
[399037731,1766082638948,-500.0,0.00016999,2]
[399037732,1766082638959,-500.0,0.00016999,2]
[399037733,1766082638969,-500.0,0.00016999,2]
[399037734,1766082638979,-189.07078654,0.00016999,2]
[399037735,1766082638989,-963488.97892149,0.00017,2]
[399037736,1766082638999,-4713.0777971,0.00017,2]
[399037737,1766082639009,-697467.22664113,0.00017,2]
[399037738,1766082639023,-534.58553686,0.00017,2]
[399037743,1766082640152,-434.42394116,0.00017,2]
[399037744,1766082640164,-3587.4823305,0.00017,2]
[399037771,1766082646377,-48291.55773212,0.00017,2]
[399037772,1766082646434,-4791.68337426,0.00017,2]
[399037773,1766082646445,-505.01796416,0.00017,2]
[399037774,1766082647085,-4331.18845573,0.00017,2]
[399037776,1766082954978,495.4497,8.21e-05,2]
[399037777,1766082955001,2093.0703,8.21e-05,2]
[399037778,1766082955185,2588.52,8.642e-05,2]
[399037779,1766082955410,2588.52,9.074e-05,2]
[399037780,1766082955629,2588.52,9.506e-05,2]
[399037781,1766082955832,2588.52,9.938e-05,2]
[399037782,1766082956074,2588.52,0.0001037,2]
[399037783,1766082956283,1666.78813022,0.00010803,2]
[399037784,1766082956313,921.73186978,0.00010803,2]
[399037785,1766082956536,2588.52,0.00011235,2]
[399037786,1766082956794,2588.52,0.00011667,2]
[399037787,1766082956990,2588.52,0.00012099,2]
[399037788,1766082957434,2588.52,0.00012531,2]
[399037789,1766082957660,2588.52,0.00012963,2]
[399037790,1766082957862,2588.52,0.00013395,2]
[399037791,1766082958075,2588.52,0.00013827,2]
[399037792,1766082958282,2588.52,0.00014259,2]
[399037793,1766082958489,2588.52,0.00014692,2]
[399037794,1766082958698,2588.52,0.00015124,2]
[399037795,1766082960717,2588.52,0.00015556,2]
[399037796,1766082960755,2588.52,0.00015988,2]
[399037799,1766083259747,169.98,0.0001619,2]
[399037800,1766083351413,-256.25176622,0.00016399,2]
[399037801,1766083358113,150.0,0.0001614,2]
[399037802,1766083379958,-237.01190325,0.00016399,2]
[399037803,1766083381375,16763.79,0.0001614,2]
[399037804,1766083382895,-168.24452342,0.00016399,2]
[399037805,1766083506559,150.0,0.00015288,2]
[399037806,1766083552084,151.97,0.00012844,2]
[399037810,1766083770503,-219.63638542,0.0001632,2]
[399037821,1766083832282,-519.62530907,0.0001632,2]
[399037822,1766083832293,-287.0,0.0001632,2]
[399037824,1766083832303,-195.0,0.00016335,2]
[399037825,1766083832314,-300.0,0.00016344,2]
[399037826,1766083832324,-195.0,0.00016359,2]
[399037827,1766083832333,-195.0,0.00016362,2]
[399037828,1766083832343,-250.0,0.00016363,2]
[399037829,1766083832353,-342.59695128,0.00016396,2]
[399037830,1766083832363,-5782.30272221,0.000164,2]
[399037831,1766083832373,-1192.35519142,0.0001642,2]
[399037837,1766083832421,-570.88444884,0.0001642,2]
[399037839,1766083832438,-825.28035974,0.0001642,2]
[399037841,1766083832448,-562.14,0.00016438,2]
[399037842,1766083832458,-1200.0,0.00016495,2]
[399037843,1766083832470,-1200.0,0.00016496,2]
[399037844,1766083832479,-300.0,0.00016496,2]
[399037845,1766083832489,-300.0,0.00016496,2]
[399037846,1766083832499,-300.0,0.00016496,2]
[399037847,1766083832510,-504.89372768,0.00016499,2]
[399037848,1766083832520,-500.0,0.00016499,2]
[399037849,1766083832530,-500.0,0.00016499,2]
[399037850,1766083832539,-3290.69892535,0.00016499,2]
[399037851,1766083832551,-865.49888406,0.00016499,2]